bitfinex-derivatives/quotes_SOLF0:USTF0_20241212
["timestamp","ask_amount","ask_price","bid_price","bid_amount"]
[1733969703507,2.2069,226.39,226.34,6.57559632]
[1733969703712,2.04,226.4,226.34,6.57559632]
[1733969704011,2.04,226.4,226.36,6.57559632]
[1733969704217,2.8266,226.48,226.38,6.57559632]
[1733969704406,2.8266,226.48,226.4,6.57559632]
[1733969704407,6.57559632,226.46,226.4,6.57559632]
[1733969704605,2.2067,226.41,226.4,6.57559632]
[1733969705005,6.57559632,226.46,226.4,6.57559632]
[1733969705214,2.2064,226.44,226.42,6.57559632]
[1733969705518,2.04,226.46,226.42,6.57559632]
[1733969705714,2.04,226.46,226.44,6.57559632]
[1733969705914,2.04,226.46,226.39,2.8644]
[1733969706107,2.04,226.46,226.44,6.57559632]
[1733969706511,2.2063,226.45,226.42,6.57559632]
[1733969706714,2.04,226.46,226.42,6.57559632]
[1733969707609,2.2064,226.44,226.42,6.57559632]
[1733969708310,4.2463,226.46,226.42,6.57559632]
[1733969708512,2.2063,226.46,226.42,6.57559632]
[1733969708916,2.2063,226.45,226.42,6.57559632]
[1733969710613,8.61559632,226.48,226.42,6.57559632]
[1733969711607,2.2063,226.45,226.42,6.57559632]
[1733969712420,2.2062,226.47,226.42,6.57559632]
[1733969712717,2.04,226.5,226.46,6.57559632]
[1733969713112,2.2059,226.49,226.46,6.57559632]
[1733969713317,2.04,226.5,226.46,6.57559632]
[1733969713519,2.04,226.52,226.46,6.57559632]
[1733969713723,2.2059,226.49,226.44,6.57559632]
[1733969716714,2.04,226.52,226.46,6.57559632]
[1733969716917,2.2058,226.5,226.46,6.57559632]
[1733969718013,2.2057,226.51,226.46,6.57559632]
[1733969718413,1.4284,226.57,226.48,6.57559632]
[1733969718620,2.04,226.56,226.5,6.57559632]
[1733969718819,2.04,226.57,226.5,6.57559632]
[1733969719014,2.2052,226.56,226.52,6.57559632]
[1733969719524,2.2051,226.58,226.54,6.57559632]
[1733969719918,2.04,226.59,226.52,6.57559632]
[1733969720218,2.2052,226.56,226.52,6.57559632]
[1733969723921,8.61559632,226.59,226.52,6.57559632]
[1733969724222,2.2051,226.58,226.52,8.78119632]
[1733969725930,2.2051,226.57,226.52,8.78119632]
[1733969726226,6.57559632,226.57,226.48,2.04]
[1733969726421,6.57559632,226.57,226.49,6.57559632]
[1733969726625,2.2054,226.54,226.49,6.57559632]
[1733969726823,2.2054,226.54,226.49,8.78149632]
[1733969727625,2.2054,226.54,226.49,2.2059]
[1733969727834,2.2054,226.54,226.49,8.78149632]
[1733969728430,2.2054,226.54,226.5,2.2058]
[1733969728631,2.2053,226.55,226.5,2.2058]
[1733969730153,2.2051,226.58,226.53,8.78109632]
[1733969731234,2.2049,226.6,226.55,2.2053]
[1733969731530,2.2049,226.6,226.55,8.78089632]
[1733969731738,2.04,226.61,226.55,8.78089632]
[1733969732032,2.04,226.62,226.55,8.78089632]
[1733969732433,2.2048,226.6,226.55,8.78089632]
[1733969733135,2.2049,226.59,226.54,2.2054]
[1733969733531,6.57559632,226.61,226.53,6.57559632]
[1733969734135,2.2049,226.6,226.54,2.2054]
[1733969734736,2.205,226.59,226.54,2.2054]
[1733969736637,2.2052,226.57,226.52,2.2055]
[1733969736834,6.57559632,226.59,226.48,2.04]
[1733969737033,2.04,226.62,226.5,6.57559632]
[1733969737238,6.57559632,226.58,226.5,6.57559632]
[1733969737737,6.57559632,226.58,226.47,2.8811]
[1733969738041,6.57559632,226.56,226.48,6.57559632]
[1733969738339,6.57559632,226.56,226.48,8.78159632]
[1733969738340,8.61559632,226.56,226.48,8.78159632]
[1733969738736,8.61559632,226.56,226.48,6.57559632]
[1733969739634,2.2056,226.53,226.49,2.2059]
[1733969740437,2.2056,226.53,226.5,6.57559632]
[1733969741047,8.61559632,226.56,226.5,6.57559632]
[1733969741343,2.2057,226.52,226.5,6.57559632]
[1733969741734,2.2057,226.52,226.48,8.78159632]
[1733969742760,2.2055,226.53,226.5,6.57559632]
[1733969743938,2.2055,226.53,226.49,8.78149632]
[1733969744530,2.2054,226.54,226.49,6.57559632]
[1733969744636,2.04,226.56,226.49,6.57559632]
[1733969745438,2.2055,226.53,226.49,6.57559632]
[1733969746744,2.2055,226.53,226.49,8.78149632]
[1733969747336,4.2453,226.56,226.51,6.57559632]
[1733969747537,2.04,226.56,226.51,6.57559632]
[1733969747846,2.04,226.58,226.53,6.57559632]
[1733969748140,2.04,226.58,226.55,6.57559632]
[1733969748346,1.4243,226.63,226.57,6.57559632]
[1733969748347,2.04,226.62,226.57,6.57559632]
[1733969748849,2.2048,226.6,226.57,6.57559632]
[1733969749437,2.04,226.62,226.57,6.57559632]
[1733969750850,2.04,226.64,226.59,6.57559632]
[1733969751446,2.04,226.65,226.61,6.57559632]
[1733969751647,2.04,226.67,226.61,6.57559632]
[1733969752148,6.57559632,226.68,226.61,6.57559632]
[1733969752445,8.61559632,226.68,226.61,6.57559632]
[1733969752750,2.2043,226.66,226.61,6.57559632]
[1733969755558,2.2041,226.67,226.61,8.78029632]
[1733969757648,2.2041,226.67,226.63,6.57559632]
[1733969760051,4.244,226.69,226.65,6.57559632]
[1733969760250,2.204,226.69,226.65,6.57559632]
[1733969761847,2.2041,226.68,226.62,2.04]
[1733969762050,2.2041,226.68,226.63,6.57559632]
[1733969762546,2.2041,226.68,226.63,2.2045]
[1733969762745,2.2041,226.68,226.65,6.57559632]
[1733969763246,2.2041,226.68,226.63,2.2045]
[1733969763456,6.57559632,226.69,226.61,2.04]
[1733969763651,6.57559632,226.67,226.59,5.41040497]
[1733969763852,6.57559632,226.67,226.59,11.98600129]
[1733969764255,8.61559632,226.67,226.59,11.98600129]
[1733969764758,6.57559632,226.65,226.58,2.8233]
[1733969765451,2.2047,226.62,226.58,2.8233]
[1733969765954,6.57559632,226.65,226.58,2.8233]
[1733969766255,6.57559632,226.63,226.57,6.57559632]
[1733969766756,6.57559632,226.63,226.55,2.2052]
[1733969766957,6.57559632,226.63,226.55,8.78079632]
[1733969768256,2.04,226.67,226.55,8.78079632]
[1733969768657,6.57559632,226.64,226.57,6.57559632]
[1733969769358,2.2048,226.6,226.57,6.57559632]
[1733969769960,2.2048,226.6,226.54,5.37059781]
[1733969770162,2.2048,226.6,226.56,6.57559632]
[1733969771264,2.2048,226.6,226.56,8.78079632]
[1733969771860,2.2046,226.62,226.58,6.57559632]
[1733969772465,6.57559632,226.65,226.58,8.78059632]
[1733969773263,2.2044,226.65,226.6,8.78039632]
[1733969775259,4.2442,226.67,226.62,6.57559632]
[1733969777262,1.4339,226.79,226.64,6.57559632]
[1733969777462,2.04,226.71,226.64,6.57559632]
[1733969777669,2.04,226.71,226.66,6.57559632]
[1733969777868,8.04769632,226.72,226.66,6.57559632]
[1733969778066,10.08769632,226.72,226.66,6.57559632]
[1733969778267,8.04769632,226.72,226.66,6.57559632]
[1733969778468,2.2038,226.71,226.66,6.57559632]
[1733969779070,10.08769632,226.72,226.66,6.57559632]
[1733969779272,10.08769632,226.72,226.67,2.2041]
[1733969780273,8.61559632,226.72,226.67,2.2041]
[1733969781867,5.17993508,226.76,226.68,6.57559632]
[1733969782066,3.376,226.77,226.71,2.2037]
[1733969782375,3.376,226.77,226.7,6.57559632]
[1733969782376,8.61559632,226.79,226.72,6.57559632]
[1733969782571,8.61559632,226.79,226.71,6.57559632]
[1733969782774,6.57559632,226.77,226.71,6.57559632]
[1733969783273,8.77879632,226.77,226.71,8.77929632]
[1733969784093,6.57559632,226.75,226.68,2.8034]
[1733969784474,6.57559632,226.75,226.68,6.57559632]
[1733969784773,2.2036,226.73,226.68,6.57559632]
[1733969785475,8.77919632,226.73,226.66,6.57559632]
[1733969785670,2.2037,226.72,226.67,2.2041]
[1733969789081,2.2039,226.7,226.65,4.2443]
[1733969789275,2.2039,226.7,226.65,8.77989632]
[1733969790177,2.2039,226.7,226.65,2.2043]
[1733969790480,2.2039,226.7,226.65,8.77989632]
[1733969790778,6.57559632,226.73,226.66,2.2042]
[1733969790978,2.2038,226.71,226.66,2.2042]
[1733969792271,2.2038,226.71,226.65,6.57559632]
[1733969792470,2.2038,226.71,226.67,2.2041]
[1733969792875,2.2038,226.71,226.64,5.16919455]
[1733969793078,2.2038,226.71,226.65,6.57559632]
[1733969794682,2.2038,226.71,226.66,2.2042]
[1733969796871,2.2038,226.71,226.67,8.77969632]
[1733969797082,2.2037,226.72,226.67,6.57559632]
[1733969797278,6.57559632,226.73,226.64,5.16919455]
[1733969797483,6.57559632,226.73,226.67,6.57559632]
[1733969797881,2.2037,226.72,226.67,8.77969632]
[1733969798080,6.57559632,226.73,226.67,6.57559632]
[1733969799173,8.77919632,226.73,226.68,2.204]
[1733969800681,2.2037,226.72,226.68,2.204]
[1733969801181,2.2037,226.72,226.67,8.77969632]
[1733969804180,2.2037,226.72,226.67,2.2041]
[1733969807979,2.2037,226.72,226.67,8.77969632]
[1733969809083,2.2037,226.72,226.67,6.57559632]
[1733969809287,2.04,226.75,226.69,6.57559632]
[1733969809819,2.04,226.75,226.64,5.21252713]
[1733969809820,2.04,226.75,226.71,6.57559632]
[1733969810179,4.2434,226.75,226.71,6.57559632]
[1733969811584,4.2434,226.75,226.71,8.77929632]
[1733969812783,2.2033,226.77,226.71,8.77929632]
[1733969813389,1.419,226.85,226.74,2.2035]
[1733969813390,2.203,226.79,226.74,2.2035]
[1733969813587,2.04,226.79,226.73,6.57559632]
[1733969813790,1.419,226.85,226.73,6.57559632]
[1733969814089,1.419,226.85,226.75,6.57559632]
[1733969814090,6.57559632,226.82,226.75,6.57559632]
[1733969814486,2.203,226.79,226.75,6.57559632]
[1733969815987,2.2028,226.81,226.75,8.77889632]
[1733969816244,2.04,226.82,226.79,6.57559632]
[1733969816387,1.419,226.85,226.79,6.57559632]
[1733969816388,3.459,226.85,226.79,6.57559632]
[1733969816788,1.419,226.85,226.79,6.57559632]
[1733969817483,8.61559632,226.86,226.79,6.57559632]
[1733969818289,6.57559632,226.93,226.68,8.93854009]
[1733969818485,6.57559632,226.91,226.85,6.57559632]
[1733969818687,6.57559632,226.91,226.83,8.61559632]
[1733969818989,2.202,226.89,226.83,10.81819632]
[1733969819494,6.57559632,226.9,226.83,8.61559632]
[1733969819798,2.2019,226.91,226.85,6.57559632]
[1733969820494,2.202,226.89,226.83,8.61559632]
[1733969822087,2.202,226.89,226.83,2.04]
[1733969822295,2.202,226.89,226.84,6.57559632]
[1733969823592,2.2021,226.88,226.84,6.57559632]
[1733969824193,2.202,226.89,226.84,6.57559632]
[1733969824802,2.2021,226.88,226.84,6.57559632]
[1733969829602,6.57559632,226.91,226.84,6.57559632]
[1733969829901,2.202,226.9,226.84,8.77809632]
[1733969830402,6.57559632,226.91,226.84,8.77809632]
[1733969831500,2.202,226.9,226.84,8.77809632]
[1733969831706,6.57559632,226.91,226.84,6.57559632]
[1733969832308,2.202,226.89,226.84,8.77809632]
[1733969835308,2.202,226.89,226.86,6.57559632]
[1733969835510,2.04,226.95,226.88,6.57559632]
[1733969835713,6.57559632,226.94,226.88,6.57559632]
[1733969836309,2.2017,226.93,226.88,6.57559632]
[1733969836606,2.04,226.97,226.9,6.57559632]
[1733969837202,8.61559632,226.97,226.9,6.57559632]
[1733969837608,8.77689632,226.97,226.9,6.57559632]
[1733969837801,6.57559632,226.99,226.92,6.57559632]
[1733969838205,2.2012,226.98,226.92,6.57559632]
[1733969838404,6.57559632,226.99,226.92,6.57559632]
[1733969838809,2.201,226.99,226.94,6.57559632]
[1733969839008,2.04,227.02,226.94,6.57559632]
[1733969839210,6.57559632,227.01,226.94,6.57559632]
[1733969839512,2.2008,227.01,226.96,6.57559632]
[1733969840906,2.2008,227.02,226.98,6.57559632]
[1733969841805,1.402,227.1,227.0,6.57559632]
[1733969841806,2.04,227.07,227.0,6.57559632]
[1733969842010,8.61559632,227.07,227.0,6.57559632]
[1733969843017,8.61559632,227.07,226.98,2.04]
[1733969843211,2.04,227.07,226.98,8.61559632]
[1733969843413,6.57559632,227.04,226.98,8.61559632]
[1733969844722,2.2008,227.02,226.98,2.04]
[1733969844921,2.2008,227.02,226.97,6.57559632]
[1733969846025,6.57559632,227.04,226.97,6.57559632]
[1733969846220,2.2009,227.01,226.97,6.57559632]
[1733969853326,2.2009,227.0,226.97,6.57559632]
[1733969853638,6.57559632,227.04,226.97,6.57559632]
[1733969854333,2.2008,227.02,226.97,6.57559632]
[1733969855129,2.2008,227.02,226.97,8.77679632]
[1733969856327,5.23869871,227.09,226.99,6.57559632]
[1733969856523,6.57559632,227.07,226.99,6.57559632]
[1733969856725,2.2007,227.03,226.99,6.57559632]
[1733969858232,6.57559632,227.05,226.96,4.996]
[1733969858233,2.2008,227.01,226.96,4.996]
[1733969858430,2.2008,227.01,226.96,11.57159632]
[1733969858932,6.57559632,227.03,226.96,11.57159632]
[1733969859232,2.201,227.0,226.96,11.57159632]
[1733969861033,6.57559632,226.99,226.74,6.13254009]
[1733969861233,6.57559632,226.99,226.92,6.57559632]
[1733969861431,2.2012,226.97,226.92,6.57559632]
[1733969861634,6.57559632,226.99,226.92,6.57559632]
[1733969861933,2.2016,226.94,226.9,8.77749632]
[1733969862129,6.57559632,226.97,226.9,6.57559632]
[1733969863234,6.57559632,226.95,226.88,8.77759632]
[1733969863437,8.61559632,226.95,226.88,8.77759632]
[1733969863732,2.2017,226.93,226.88,8.77759632]
[1733969863832,8.61559632,226.95,226.88,6.57559632]
[1733969864440,2.2017,226.92,226.88,6.57559632]
[1733969866237,2.2016,226.94,226.9,6.57559632]
[1733969869641,2.2017,226.93,226.9,6.57559632]
[1733969873447,2.2017,226.92,226.88,6.57559632]
[1733969873941,2.04,226.95,226.88,6.57559632]
[1733969874139,6.57559632,226.94,226.88,6.57559632]
[1733969875246,2.2017,226.93,226.88,6.57559632]
[1733969875439,6.57559632,226.94,226.88,6.57559632]
[1733969876738,2.2018,226.92,226.88,6.57559632]
[1733969879444,2.2018,226.92,226.87,2.2022]
[1733969879649,2.2018,226.92,226.89,6.57559632]
[1733969880258,2.2018,226.91,226.89,6.57559632]
[1733969880538,6.57559632,226.93,226.86,6.57559632]
[1733969881048,2.202,226.89,226.86,6.57559632]
[1733969885151,6.57559632,226.93,226.86,6.57559632]
[1733969885352,2.04,226.95,226.86,6.57559632]
[1733969885547,6.57559632,226.93,226.86,6.57559632]
[1733969886552,2.04,226.95,226.86,6.57559632]
[1733969886953,6.57559632,226.92,226.86,6.57559632]
[1733969887556,2.2022,226.88,226.86,6.57559632]
[1733969888353,2.2022,226.87,226.86,6.57559632]
[1733969889651,2.04,226.9,226.86,6.57559632]
[1733969889847,2.2021,226.88,226.86,6.57559632]
[1733969893058,6.57559632,226.96,226.86,6.57559632]
[1733969893358,2.04,226.95,226.89,6.57559632]
[1733969893957,2.2016,226.94,226.89,6.57559632]
[1733969894156,2.04,226.95,226.89,6.57559632]
[1733969894352,2.04,226.98,226.93,6.57559632]
[1733969895255,2.2014,226.95,226.91,6.57559632]
[1733969897760,2.2014,226.95,226.89,2.2019]
[1733969897957,2.2014,226.95,226.92,6.57559632]
[1733969898681,2.04,226.98,226.94,6.57559632]
[1733969899261,4.2412,226.98,226.94,6.57559632]
[1733969899461,2.04,226.98,226.94,6.57559632]
[1733969899661,2.04,227.0,226.94,6.57559632]
[1733969900365,2.2013,226.96,226.94,6.57559632]
[1733969901260,8.61559632,227.0,226.88,2.04]
[1733969901562,6.57559632,226.98,226.91,6.57559632]
[1733969902666,2.2015,226.94,226.91,6.57559632]
[1733969903163,2.2017,226.93,226.91,6.57559632]
[1733969903367,2.04,226.95,226.85,2.04]
[1733969903576,6.57559632,226.94,226.87,6.57559632]
[1733969903963,6.57559632,226.94,226.85,2.04]
[1733969904268,6.57559632,226.94,226.87,6.57559632]
[1733969904483,6.57559632,226.94,226.85,2.04]
[1733969904663,2.2019,226.9,226.87,6.57559632]
[1733969905464,2.2019,226.9,226.88,6.57559632]
[1733969905665,2.202,226.89,226.88,6.57559632]
[1733969906866,2.2017,226.92,226.88,8.77759632]
[1733969907066,2.04,226.93,226.91,6.57559632]
[1733969908582,4.2416,226.93,226.91,6.57559632]
[1733969909262,4.2416,226.93,226.89,2.202]
[1733969909263,4.2416,226.93,226.89,6.57559632]
[1733969909471,2.2019,226.91,226.87,6.57559632]
[1733969912765,2.2017,226.92,226.89,6.57559632]
[1733969912965,2.02,226.97,226.91,6.57559632]
[1733969913273,2.02,226.97,226.84,2.8429]
[1733969913274,2.2016,226.94,226.84,2.8429]
[1733969913468,2.2016,226.94,226.9,6.57559632]
[1733969913774,6.57559632,226.96,226.9,6.57559632]
[1733969914869,2.2018,226.92,226.9,6.57559632]
[1733969915773,6.57559632,226.94,226.84,2.8429]
[1733969916073,6.57559632,226.94,226.86,6.57559632]
[1733969916673,2.02,226.97,226.88,6.57559632]
[1733969916874,6.57559632,226.95,226.88,6.57559632]
[1733969917380,2.02,226.97,226.84,2.8429]
[1733969917381,6.57559632,226.93,226.86,6.57559632]
[1733969917573,2.02,226.92,226.86,6.57559632]
[1733969917777,6.57559632,226.91,226.78,2.02]
[1733969918025,6.57559632,226.89,226.83,6.57559632]
[1733969918176,6.57559632,226.89,226.82,6.57559632]
[1733969919076,2.2024,226.85,226.82,6.57559632]
[1733969921273,2.2025,226.84,226.81,6.57559632]
[1733969921872,2.02,226.86,226.81,6.57559632]
[1733969923471,2.2026,226.83,226.78,2.2031]
[1733969923665,2.02,226.86,226.79,6.57559632]
[1733969924876,2.2027,226.83,226.79,6.57559632]
[1733969925877,2.2025,226.84,226.81,6.57559632]
[1733969927171,2.8566,226.95,226.81,6.57559632]
[1733969927443,6.57559632,226.89,226.83,6.57559632]
[1733969927573,2.04,226.88,226.83,6.57559632]
[1733969927970,6.57559632,226.87,226.81,6.57559632]
[1733969928172,6.57559632,226.85,226.77,2.8155]
[1733969928379,6.57559632,226.85,226.78,6.57559632]
[1733969928581,2.2026,226.83,226.78,6.57559632]
[1733969928778,2.04,226.82,226.78,6.57559632]
[1733969929372,2.04,226.82,226.78,8.77869632]
[1733969930879,2.04,226.82,226.78,2.2031]
[1733969931080,2.04,226.82,226.78,8.77869632]
[1733969933584,4.2427,226.82,226.78,8.77869632]
[1733969934990,2.04,226.82,226.78,6.57559632]
[1733969935189,2.04,226.82,226.8,6.57559632]
[1733969938583,5.18437015,226.89,226.8,6.57559632]
[1733969938584,2.2021,226.89,226.84,2.2025]
[1733969938785,2.2021,226.89,226.86,6.57559632]
[1733969939786,2.2021,226.89,226.84,8.77809632]
[1733969939988,2.2022,226.88,226.84,6.57559632]
[1733969940883,6.57559632,226.89,226.78,2.04]
[1733969941090,2.2023,226.86,226.82,6.57559632]
[1733969944681,2.04,226.88,226.84,6.57559632]
[1733969945696,2.04,226.88,226.84,8.77799632]
[1733969948094,2.2022,226.87,226.84,6.57559632]
[1733969952291,2.04,226.88,226.84,6.57559632]
[1733969958700,2.2021,226.88,226.84,6.57559632]
[1733969958894,2.2021,226.88,226.83,2.2026]
[1733969960003,2.02,226.89,226.82,6.57559632]
[1733969960202,6.57559632,226.88,226.81,6.57559632]
[1733969960606,2.2023,226.86,226.81,6.57559632]
[1733969960805,6.57559632,226.88,226.79,6.57559632]
[1733969961307,2.2025,226.84,226.79,2.203]
[1733969961501,2.2025,226.84,226.79,8.77859632]
[1733969964516,2.2025,226.84,226.81,6.57559632]
[1733969965104,2.02,226.89,226.83,6.57559632]
[1733969965696,2.02,226.89,226.83,2.2025]
[1733969966007,2.02,226.89,226.84,6.57559632]
[1733969967605,2.2022,226.88,226.84,6.57559632]
[1733969967898,2.02,226.89,226.84,6.57559632]
[1733969968597,8.59559632,226.89,226.82,6.57559632]
[1733969969602,2.2023,226.86,226.82,6.57559632]
[1733969971002,2.2023,226.86,226.81,2.2028]
[1733969971304,2.2032,226.77,226.71,6.57559632]
[1733969971509,10.79879632,226.77,226.71,6.57559632]
[1733969972608,4.2232,226.77,226.71,8.77939632]
[1733969973309,2.2033,226.76,226.71,6.57559632]
[1733969973613,8.59559632,226.77,226.71,6.57559632]
[1733969974001,2.02,226.77,226.71,6.57559632]
[1733969974611,2.02,226.77,226.73,6.57559632]
[1733969975207,6.57559632,226.79,226.73,6.57559632]
[1733969975414,2.02,226.78,226.73,6.57559632]
[1733969975607,2.2033,226.76,226.73,6.57559632]
[1733969976607,2.02,226.79,226.75,6.57559632]
[1733969977208,2.02,226.79,226.77,8.77879632]
[1733969979108,2.2028,226.82,226.77,8.77879632]
[1733969979407,2.02,226.81,226.77,8.77879632]
[1733969979609,2.02,226.81,226.78,2.2031]
[1733969980407,4.2226,226.84,226.79,2.203]
[1733969980605,1.4039,226.92,226.79,6.57559632]
[1733969980910,6.57559632,226.9,226.83,6.57559632]
[1733969981108,2.2023,226.87,226.79,2.2029]
[1733969981324,2.02,226.86,226.8,6.57559632]
[1733969982012,4.2224,226.86,226.8,6.57559632]
[1733969982213,2.02,226.86,226.8,6.57559632]
[1733969982810,2.02,226.86,226.81,2.2028]
[1733969986215,4.2224,226.86,226.81,2.2028]
[1733969987515,2.2024,226.86,226.81,2.2028]
[1733969987832,2.02,226.85,226.81,2.2028]
[1733969988714,2.2024,226.86,226.81,2.2028]
[1733969988916,4.2224,226.86,226.81,2.2028]
[1733969991915,4.2224,226.86,226.82,6.57559632]
[1733969992112,2.02,226.86,226.83,2.2026]
[1733969992514,6.57559632,226.9,226.82,6.57559632]
[1733969992515,2.2021,226.89,226.82,6.57559632]
[1733969992711,2.02,226.88,226.84,2.2025]
[1733969993914,2.02,226.88,226.82,6.57559632]
[1733969994115,4.2222,226.88,226.83,2.2026]
[1733969994321,8.59559632,226.88,226.81,6.57559632]
[1733969995323,2.2023,226.87,226.82,2.2027]
[1733969998029,8.77789632,226.86,226.82,2.2027]
[1733969998626,2.2023,226.86,226.82,2.2027]
[1733970001528,10.79779632,226.88,226.81,6.57559632]
[1733970001731,8.77779632,226.88,226.81,6.57559632]
[1733970001926,10.79779632,226.88,226.81,6.57559632]
[1733970002526,10.79779632,226.88,226.83,2.2025]
[1733970005034,8.59559632,226.88,226.81,2.2028]
[1733970006538,2.2024,226.86,226.81,2.2028]
[1733970007132,8.59559632,226.88,226.81,2.2028]
[1733970008427,2.2024,226.86,226.81,2.2028]
[1733970008627,8.59559632,226.88,226.81,2.2028]
[1733970009337,2.02,226.88,226.81,8.77839632]
[1733970009534,2.02,226.88,226.81,2.2028]
[1733970009535,8.59559632,226.88,226.81,2.2028]
[1733970009732,2.2023,226.86,226.81,2.2028]
[1733970009933,2.2023,226.86,226.81,8.77839632]
[1733970010631,2.2023,226.86,226.81,6.57559632]
[1733970010831,2.2023,226.86,226.82,2.2026]
[1733970011838,6.57559632,226.86,226.77,8.11853577]
[1733970012039,6.57559632,226.86,226.78,6.57559632]
[1733970013731,6.57559632,226.86,226.79,2.203]
[1733970013732,2.2025,226.84,226.79,2.203]
[1733970014438,2.2026,226.83,226.79,2.203]
[1733970014641,4.2226,226.83,226.78,2.2031]
[1733970015941,4.2226,226.83,226.78,8.77869632]
[1733970016644,2.02,226.83,226.8,6.57559632]
[1733970017139,2.2024,226.85,226.81,2.2027]
[1733970018336,2.2025,226.84,226.8,8.77849632]
[1733970018540,2.02,226.86,226.77,2.8457]
[1733970018737,2.02,226.86,226.79,6.57559632]
[1733970021353,2.2025,226.84,226.8,2.2028]
[1733970022447,2.2026,226.83,226.79,6.57559632]
[1733970023551,2.2026,226.83,226.79,8.77849632]
[1733970025254,2.2026,226.83,226.79,6.57559632]
[1733970025464,6.57559632,226.85,226.8,2.2029]
[1733970025660,8.77809632,226.85,226.8,2.2029]
[1733970025852,6.57559632,226.85,226.8,2.2029]
[1733970026155,2.02,226.86,226.81,6.57559632]
[1733970026751,2.02,226.86,226.82,2.2026]
[1733970026954,2.2023,226.87,226.82,2.2026]
[1733970027152,2.02,226.87,226.84,2.2024]
[1733970029251,2.02,226.88,226.84,2.2024]
[1733970029556,4.2221,226.88,226.84,2.2024]
[1733970030150,1.4039,226.92,226.85,2.2024]
[1733970030361,2.02,226.89,226.85,2.2024]
[1733970030655,10.79759632,226.89,226.84,2.2025]
[1733970030855,8.59559632,226.89,226.82,6.57559632]
[1733970031156,8.59559632,226.89,226.84,2.2025]
[1733970032551,8.59559632,226.89,226.83,6.57559632]
[1733970032760,2.02,226.89,226.85,2.2024]
[1733970033056,4.222,226.89,226.85,2.2024]
[1733970035558,4.222,226.89,226.83,8.77809632]
[1733970036065,4.222,226.89,226.83,6.57559632]
[1733970036259,4.222,226.89,226.84,2.2025]
[1733970037361,2.02,226.91,226.88,2.2021]
[1733970038259,2.2015,226.94,226.87,6.57559632]
[1733970038464,8.59559632,226.94,226.87,6.57559632]
[1733970039159,2.02,226.94,226.9,2.2019]
[1733970039364,2.02,226.94,226.89,6.57559632]
[1733970039760,2.02,226.94,226.9,2.2019]
[1733970039969,2.02,226.94,226.89,6.57559632]
[1733970040665,6.57559632,226.96,226.89,6.57559632]
[1733970041470,2.2014,226.95,226.91,2.2017]
[1733970041690,6.57559632,226.94,226.87,6.57559632]
[1733970042174,2.2017,226.93,226.88,2.202]
[1733970043270,2.2017,226.93,226.89,2.202]
[1733970044863,2.2013,226.96,226.91,2.2017]
[1733970045066,2.2013,226.96,226.85,1.4749]
[1733970045067,6.57559632,226.96,226.85,1.4749]
[1733970045267,6.57559632,226.96,226.89,6.57559632]
[1733970046271,2.02,226.95,226.89,6.57559632]
[1733970046668,2.2015,226.94,226.9,2.2019]
[1733970048275,2.02,226.95,226.89,6.57559632]
[1733970048572,6.57559632,226.98,226.91,6.57559632]
[1733970048768,8.59559632,226.98,226.91,6.57559632]
[1733970049576,10.79679632,226.98,226.93,2.2016]
[1733970049776,8.59559632,226.98,226.93,2.2016]
[1733970050685,2.2012,226.97,226.93,2.2016]
[1733970050971,2.2012,226.97,226.91,2.2017]
[1733970050972,6.57559632,226.96,226.91,2.2017]
[1733970051901,2.2015,226.95,226.91,2.2017]
[1733970052073,6.57559632,226.96,226.89,2.202]
[1733970052280,6.57559632,226.96,226.88,11.86384698]
[1733970053681,2.2015,226.94,226.9,2.2019]
[1733970053977,6.57559632,226.96,226.88,11.86384698]
[1733970055678,2.2014,226.95,226.88,11.86384698]
[1733970056479,2.2014,226.95,226.91,2.2018]
[1733970057278,6.57559632,226.96,226.93,2.2016]
[1733970058880,6.57559632,226.96,226.9,6.57559632]
[1733970059081,8.77699632,226.96,226.9,6.57559632]
[1733970059478,6.57559632,226.96,226.9,6.57559632]
[1733970059781,2.2016,226.94,226.9,2.2019]
[1733970060977,2.2014,226.95,226.91,2.2018]